Cogmind - Beta 16 @@@ ROGUE MODE // 2026.02.02 @ 22:45:41 Player: luckinvolved Result: Destroyed by Piercing Trap Performance ------------- Evolutions (0) 0 Regions Visited (2) 400 Robots Destroyed (27) 135 Value Destroyed (646) 646 Prototype IDs (12) 240 Alien Tech Used (0) 0 Bonus (0) 0 TOTAL SCORE: 1421 Bonus ------- None Cogmind --------- Core Integrity 0/250 Matter 1/300 Energy 169/170 System Corruption 0% Temperature Cool (0) Movement Rolling (230) Ox10 Location -10/Subcaves Parts ------- > --- POWER (1) -------- Makeshift Power Source > --- PROPULSION (2) --- Wheel > --- UTILITY (2) ------ Huge Storage Unit Seismic Detector > --- WEAPON (2) ------- Subdweller Beam Cannon Subdweller Shrapnel Launcher > --- INVENTORY (25) --- Subdweller Power Source Subdweller Power Source Subdweller Power Source Subdweller Monowheel Subdweller Monowheel Subdweller Monowheel Disposable Heat Sink Disposable Heat Sink Disposable Heat Sink Humpback Subdweller Optics Tower Shield Subdweller Laser Subdweller Laser Subdweller Laser Subdweller Machine Gun Subdweller Machine Gun Subdweller Shrapnel Launcher Mining Laser Peak State ------------ > --- POWER ------------ Makeshift Power Source > --- PROPULSION ------- Subdweller Monowheel Subdweller Monowheel > --- UTILITY ---------- Huge Storage Unit Seismic Detector > --- WEAPON ----------- Subdweller Shrapnel Launcher Subdweller Shrapnel Launcher > --- INVENTORY -------- Subdweller Power Source Subdweller Power Source Aluminum Leg Wheel Subdweller Monowheel Subdweller Monowheel Disposable Heat Sink Disposable Heat Sink Disposable Heat Sink Subdweller Optics Subdweller Optics Medium Laser Subdweller Laser Subdweller Laser Subdweller Laser Light Assault Rifle Subdweller Machine Gun Subdweller Machine Gun Mining Laser Scrap Shield Fragment Scrap Shield Fragment Scrap Shield Fragment Scrap Shield Fragment Scrap Shield Fragment Scrap Shield Fragment [Rating: 18] Favorites ----------- Power Makeshift Power Source Engine Makeshift Power Source Propulsion Subdweller Monowheel Treads Light Treads Leg Aluminum Leg Wheel Subdweller Monowheel Utility Huge Storage Unit Device Seismic Detector Storage Huge Storage Unit Weapon Subdweller Shrapnel Launcher Energy Gun Medium Laser Energy Cannon Beam Cannon Ballistic Gun Light Assault Rifle Launcher Subdweller Shrapnel Launcher Special Weapon Mining Laser Build | -11 -10 -10 ------- Run | Yrd Mat Sub Slots Evolved . | . . . Power . | . . . Propulsion . | . . . Utility . | . . . Weapon . | . . . Parts Attached 33 | 3 6 24 Power 4 | . . 4 Engine 4 | . . 4 Core . | . . . Reactor . | . . . Propulsion 11 | 2 . 9 Treads 3 | 2 . 1 Leg 2 | . . 2 Wheel 6 | . . 6 Hover . | . . . Flight . | . . . Utility 7 | 1 5 1 Device 3 | 1 1 1 Storage 4 | . 4 . Processor . | . . . Hackware . | . . . Protection . | . . . Artifact . | . . . Weapon 11 | . 1 10 Energy Gun 3 | . . 3 Energy Cannon 2 | . 1 1 Ballistic Gun 2 | . . 2 Ballistic Cannon . | . . . Launcher 3 | . . 3 Special Weapon 1 | . . 1 Impact Weapon . | . . . Slashing Weapon . | . . . Piercing Weapon . | . . . Special Melee Weapon . | . . . Unidentified Prototypes . | . . . Parts Lost 11 | . . 11 Power 2 | . . 2 Propulsion 5 | . . 5 Utility 1 | . . 1 Weapon 3 | . . 3 Highest Loss Streak 5 | . . 5 To Critical Strikes . | . . . Average Backups 14 | 6 10 16 Power 1 | 1 1 2 Propulsion 3 | 4 4 3 Utility 3 | . . 4 Weapon 5 | 1 4 6 Tool/Special . | . . . Unused Backups 20 | 4 . 16 Power 4 | 1 . 3 Propulsion . | . . . Utility 9 | 1 . 8 Weapon 7 | 2 . 5 Tool/Special . | . . . Average Slot Usage (%) 97 | . 100 96 Engine 13 | . 14 13 Treads 11 | . 28 3 Wheel 14 | . . 21 Device 14 | . 14 14 Storage 14 | . 14 14 Energy Gun 10 | . 14 8 Energy Cannon 8 | . 13 5 Ballistic Gun 1 | . . 2 Launcher 7 | . . 11 Peak Build Rating 18 | 7 8 18 Average Rating 12 | 6 7 14 On Entrance 7 | 6 7 8 Avg Prop Armor Cover (%) 5 | . . 5 Naked Turns . | . . . Heaviest Build 102 | 15 91 102 Greatest Support 40 | 40 40 40 Greatest Overweight (x) 10 | . 2 10 Average Overweight (x) 2 | . 1 3 Largest Inventory Capacity 25 | 8 25 25 Average Capacity 23 | 8 21 25 Most Carried 25 | 7 14 25 Average Carried 17 | 6 10 21 Final Capacity 25 | 8 25 25 Final Carried 21 | 7 14 21 Class Distribution -------------------- 74% | Mutant 25% | Scavenger-Mutant Dominant Class ---------------- Mutant | -10/Materials Mutant | -10/Subcaves Resources | -11 -10 -10 ----------- Run | Yrd Mat Sub Matter Collected 687 | 230 53 404 Remotely . | . . . Salvage Created 880 | 110 327 443 Parts 48 | 6 10 32 Haulers Intercepted 1 | . 1 . Recyclers Shooed 3 | 1 2 . Parts Field Recycled . | . . . Retrieved Matter . | . . . Parts Self-Destructed 15 | . . 15 Prevented . | . . . Parts Restored . | . . . Kills | -11 -10 -10 ------- Run | Yrd Mat Sub Combat Hostiles Destroyed 21 | . 6 15 Guns 8 | . 1 7 Cannons 8 | . 4 4 AOE 4 | . . 4 Classes Destroyed 7 | 2 3 2 Tunneler 1 | 1 . . Hauler 1 | . 1 . Recycler 2 | 1 1 . Turret 2 | . . 2 Swarmer 9 | . 3 6 Grunt 3 | . 3 . Subdweller 9 | . . 9 Best Kill Streak 6 | 1 4 6 Combat Bots Only 6 | . 3 6 Max Kills in Single Turn 2 | 1 1 2 Gunslinging . | . . . Exploded 2 | . . 2 Melee . | . . . Uniques/NPCs Destroyed . | . . . Combat | -11 -10 -10 -------- Run | Yrd Mat Sub Hostile Shots Fired 156 | . 33 123 Missed 53 | . 9 44 Hits 103 | . 24 79 Projectile 103 | . 24 79 Damage Taken 1352 | . 308 1044 Core 266 | . 42 224 Absorbed by Shields . | . . . Core Remaining (%) 100 | 100 . . Volleys Fired 98 | 5 29 64 Largest 2 | 2 2 2 Hottest 120 | 100 110 120 Shots Fired 180 | 10 58 112 Gun 99 | 10 29 60 Cannon 59 | . 29 30 Launcher 22 | . . 22 Special . | . . . Kinetic 30 | . . 30 Thermal 140 | 10 58 72 Explosive 10 | . . 10 Electromagnetic . | . . . Robot Hit Streak 18 | 4 18 15 Robot Miss Streak 5 | 1 5 4 Penetration Max . | . . . Secondary Targets . | . . . Shots Hit Robots 96 | 7 40 49 Core Hits 47 | 3 10 34 Critical Kills . | . . . Critical Parts Destroyed . | . . . Critical Strikes 2 | . . 2 Burn 2 | . . 2 Melee Attacks . | . . . Impact . | . . . Slashing . | . . . Piercing . | . . . Sneak Attacks . | . . . Combat Hostiles . | . . . Follow-up Attacks . | . . . Damage Inflicted 2474 | 86 644 1744 Guns 766 | 86 246 434 Cannons 658 | . 373 285 Explosions 1025 | . . 1025 Melee . | . . . Ramming 25 | . 25 . Kinetic 905 | . . 905 Thermal 1334 | 86 619 629 Explosive 210 | . . 210 Electromagnetic . | . . . Impact . | . . . Slashing . | . . . Piercing . | . . . Highest Corruption . | . . . Average Corruption . | . . . Corruption Purged . | . . . Corruption Blocked . | . . . Overload Shots . | . . . Overflow Damage 28 | . 15 13 Projectiles 15 | . 15 . Explosions 13 | . . 13 Melee . | . . . Knockbacks 1 | . 1 . Impact 1 | . 1 . Kinetic . | . . . Secondary . | . . . Self-Inflicted Damage 101 | . . 101 Shots 3 | . . 3 Rammed 4 | . 4 . Targets Rammed 4 | . 4 . Kicked . | . . . Crushed . | . . . Highest Temperature 271 | 117 271 20 Average Temperature 81 | 43 96 8 Received Heat Transfer 291 | . 135 156 Effects 3 | . 3 . Energy Bleed 1 | . 1 . Interference 2 | . 2 . Siege Activations . | . . . Martial Activations . | . . . Shielding Activations . | . . . Robots Disrupted . | . . . Combat Hostiles . | . . . Robots Corrupted . | . . . Combat Hostiles . | . . . Parts Fried . | . . . Impact Corruptions . | . . . Robots Melted 1 | . 1 . Combat Hostiles 1 | . 1 . Parts Melted 1 | . 1 . Heat Transferred 3026 | 259 1480 1287 Parts Sabotaged . | . . . Parts Stolen . | . . . Parts Stripped . | . . . Power Chain Reactions . | . . . Alert | -11 -10 -10 ------- Run | Yrd Mat Sub Maximum Alert Level . | . . . Low Security (%) 100 | 100 100 . Level 1 . | . . . Level 2 . | . . . Level 3 . | . . . Level 4 . | . . . Level 5 . | . . . High Security . | . . . Max Security . | . . . Peak Influence 71 | 5 71 . Initial . | . . . Average 14 | 1 14 . Influence Increases 680 | 10 200 470 Destroy 0b10 Robot/C 280 | . 120 160 Destroy 0b10 Robot/NC 20 | 10 10 . Destroy Leader 42 | . 32 10 Successful Hack 23 | . 23 . Lose Combat Pursuer 315 | . 15 300 Influence Decreases 680 | 10 148 522 Entered New Map 26 | . . 26 Time Decay 554 | 10 148 396 Lost Part 100 | . . 100 Squads Dispatched 1 | . 1 . Investigation . | . . . Extermination . | . . . Reinforcement 1 | . 1 . Assault . | . . . Garrison . | . . . Intercept . | . . . Searches Triggered . | . . . Construction Impeded . | . . . Haulers Reinforced . | . . . Active Scanning Responses . | . . . Cargo Convoy Interrupts . | . . . Stealth | -11 -10 -10 --------- Run | Yrd Mat Sub Distress Signals 1 | . 1 . Communications Jammed . | . . . Distress Signals . | . . . Times Spotted 34 | . 10 24 Peak Tracking Total 6 | . 3 6 Tactical Retreats 5 | . 1 4 Traps | -11 -10 -10 ------- Run | Yrd Mat Sub Traps Triggered 2 | . 1 1 Indirectly . | . . . Trap Hack Attempts . | . . . Triggered . | . . . Disarmed . | . . . Reprogrammed . | . . . Reused . | . . . Traps Extracted . | . . . Installed . | . . . Triggered . | . . . Machines | -11 -10 -10 ---------- Run | Yrd Mat Sub Machines Disabled 5 | . 1 4 Max in Single Turn 2 | . 1 2 Machines Repaired . | . . . Machines Dismantled . | . . . Machines Sabotaged . | . . . Overloaded Fab Kills . | . . . Hacking | -11 -10 -10 --------- Run | Yrd Mat Sub Machines Accessed 5 | . 4 1 Terminals 3 | . 3 . Fabricators . | . . . Repair Stations 1 | . 1 . Recycling Units . | . . . Scanalyzers . | . . . Garrison Access . | . . . Total Hacks 12 | . 11 1 Successful 5 | . 4 1 Failed 7 | . 7 . Catastrophic . | . . . Database Lockouts . | . . . Manual 9 | . 9 . Terminals 10 | . 10 . Fabricators . | . . . Repair Stations 1 | . 1 . Recycling Units . | . . . Scanalyzers . | . . . Garrison Access . | . . . Terminal Hacks 3 | . 2 1 Robot Analysis 2 | . 2 . Proto ID Catalog 1 | . . 1 Fabricator Hacks . | . . . Repair Station Hacks . | . . . Recycling Unit Hacks . | . . . Scanalyzer . | . . . Garrison Access Hacks . | . . . Unauthorized Hacks 2 | . 2 . Terminals 2 | . 2 . Botnet 2 | . 2 . Fabricators . | . . . Repair Stations . | . . . Recycling Units . | . . . Scanalyzers . | . . . Garrison Access . | . . . Data Cores Recovered . | . . . Used . | . . . Hacking Detections 4 | . 4 . Full Trace Events . | . . . Feedback Events . | . . . Feedback Blocked . | . . . Robot Schematics Acquired . | . . . Robots Built . | . . . Authchips . | . . . Time . | . . . Total Robot Build Rating . | . . . Part Schematics Acquired . | . . . Parts Built . | . . . Authchips . | . . . Time . | . . . Total Part Build Rating . | . . . Part Studies Acquired . | . . . Parts Repaired . | . . . Time . | . . . Parts Recycled . | . . . Recycled Matter . | . . . Retrieved Matter . | . . . Retrieved Components . | . . . Parts Scanalyzed . | . . . Part Schematics Acquired . | . . . Parts Damaged . | . . . Bothacking | -11 -10 -10 ------------ Run | Yrd Mat Sub Used RIF Installer . | . . . Robots Hacked . | . . . Non-combat . | . . . Combat . | . . . Robot Hacks Applied . | . . . Relay Couplers Released . | . . . Fabnet Peak Effective % . | . . . Robots Rewired . | . . . Allies Hacked . | . . . Hacks Repelled . | . . . Allies | -11 -10 -10 -------- Run | Yrd Mat Sub Total Allies . | . . . Largest Group . | . . . Highest-Rated Group . | . . . Highest-Rated Ally . | . . . Total Orders . | . . . Ally Attacks . | . . . Total Damage . | . . . Kills . | . . . Allies Corrupted . | . . . Allies Melted . | . . . Intel | -11 -10 -10 ------- Run | Yrd Mat Sub Active Infowar (turns) 2421 | 28 676 1717 Seismic 2421 | 28 676 1717 Robot Analysis Total 2 | . 2 . Derelict Logs Recovered 3 | . . 3 Drone Launches . | . . . Drone Recoveries . | . . . Exploration | -11 -10 -10 ------------- Run | Yrd Mat Sub Turns Passed 3240 | 52 993 2195 Spaces Moved 1570 | 19 336 1215 Core . | . . . Treads 421 | 19 336 66 Legs 3 | . . 3 Wheels 1146 | . . 1146 Hover . | . . . Flight . | . . . Fastest Speed 130 | 160 160 130 Average Speed 178 | 160 253 157 Slowest Speed 400 | 160 320 400 Overloaded Moves . | . . . Propulsion Burnouts . | . . . Robots Hopped . | . . . Potential Cave-ins . | . . . Cave-ins Triggered . | . . . Exploration Rate (%) 42 | 2 55 71 Regions Visited 2 Branch Regions 1 Pre-discovered Areas 1 | . . 1 Known Exits Taken . | . . . Unknown Exits Taken 2 | 1 1 . Scrap Searched 2 | . . 2 Spaces Dug . | . . . Terrain Destroyed 138 | . . 138 Melee . | . . . Projectile 1 | . . 1 AOE 137 | . . 137 Terrain Rammed . | . . . Walls Destroyed . | . . . Machines Disabled . | . . . Actions | -11 -10 -10 --------- Run | Yrd Mat Sub Total 1834 | 29 415 1390 Wait 53 | 2 30 21 Move 1568 | 18 335 1215 Hop . | . . . Pick Up 39 | 1 7 31 Fast Attach 1 | 1 . . Attach 10 | . . 10 Detach . | . . . Swap 37 | 2 6 29 Drop 24 | . 4 20 Fire 98 | 5 29 64 Melee . | . . . Ram . | . . . Kick . | . . . Crush 4 | . 4 . Escape Stasis . | . . . Rewire . | . . . Trap . | . . . Miscellaneous . | . . . Route ------- -11/Scrapyard -10/Materials (discovered 2 exits: [*Min] / *Sub) -10/Subcaves (discovered 3 exits: [*Mat x2] / [*Rec]) History --------- Turn | Location | Event 4 | -11/Scrapyard | Discovered new exit (range 2) 53 | -11/Scrapyard | Entered Materials 305 | -10/Materials | Build established: Mutant 350 | -10/Materials | Discovered new exit (range 13) 1024 | -10/Materials | Discovered new exit (range 8) 1046 | -10/Materials | Entered Subcaves 1047 | -10/Subcaves | Approached by a straggling Scientist 1055 | -10/Subcaves | A swath of the cavern ceiling suddenly collapsed 1120 | -10/Subcaves | Discovered new exit (range 14) 1367 | -10/Subcaves | Core integrity fell below 50% 1395 | -10/Subcaves | Lost 5 parts (1p3n1u) 1670 | -10/Subcaves | Build established: Scavenger-Mutant 1892 | -10/Subcaves | Disturbed a concealed Subdweller 1899 | -10/Subcaves | Core integrity fell below 20% 1970 | -10/Subcaves | Learned 8 Materials zone layouts 2003 | -10/Subcaves | Learned location of Storage (-7) 2471 | -10/Subcaves | Discovered new exit (range 12) 2525 | -10/Subcaves | Shifting Twisted Machinery released Sub. Beam Cannon 2528 | -10/Subcaves | Shifting Twisted Machinery released Battle Rifle 2553 | -10/Subcaves | Discovered new exit (range 8) 2641 | -10/Subcaves | Build established: Mutant 2648 | -10/Subcaves | Shifting Twisted Machinery released Sub. Shrapnel Launcher 2650 | -10/Subcaves | Shifting Twisted Machinery released Sub. Monowheel 2817 | -10/Subcaves | Ambushed by Subdweller buried in earth 2940 | -10/Subcaves | A swath of the cavern ceiling suddenly collapsed 3079 | -10/Subcaves | Visited 4L-MR0's lab 3102 | -10/Subcaves | Found Prototype Protection 3109 | -10/Subcaves | Identified Tower Shield 3241 | -10/Subcaves | Destroyed by Piercing Trap Last Messages --------------- 03109_ Connecting with 4L-MR0's Prototype Logs... 03109_ Current location identified: Subcaves >>Proto ID Catalog Downloading prototype IDs... Meta Core Arachnoskeleton Cargo Legs Tripod Weapons Platform Hoverbase Flightbrick Gun Armor Tower Shield Power Bank Rainbow Chip VL-GR5's Exoskeleton "Deathgrip" Powered Cannon 03172_ Subatomizers dissect the Sub. Optics. 03241_ Triggered Piercing Trap. 03241_ Spikes shoot up from the floor. 03241_ Critical hit (Impale). Map ----- +----------------------------------------------------+ | ?????????????????????#???????????????????????????? | | ??????????????????#### ??????????????????????????? | | ?????????????????? ##???????????????????????? | | ?????????????????? ##?###??????????????#### | | ????????????????? ## ##????????????## | | ????????????????? """ ##???######### | | ???????????????? & " " #???# ## ## | | ??????????????? ##### #### | | ??????????????? ###?# | | ???????????????? " ### ## ## | | ???????????????? "#" ##?###### | | ?????????????????# "" ??##""# ###????# # # | | ?????????????????## #?????#### #?????# "#" | | ??????????????????## ???????###### ##??????##"# | | ???????????????????????## ###"# # #???????##"# | | ???????????????????????# """" # #???????#""# | | ??????????????????????? ###"# # # #??????##" | | ??????????????????????"" ?#?##### # #???????### | | ?????????????????????? " ? ??? ## ##????????## | | ??????????????????????#" ? ??? ? ??????????# | | ?????????????????????##""# #??? # #??????????? | | ??????????????????????" " # #??########??????????? | | ?????????????????????##" ^ #????????????????????? | | ?????????????????????#"" #????????????????????? | | ?????????????????????# ^ #?????????????????????? | | ?????????????????????# ^ @#??????????????????????? | | ?????????????????????### ##????????????????###### | | ??????????????????????## ##???????????????# &&&& | | ??????????????????????# #???????????????###&& | | ??????????????????????# ###???????????????#"""X" | | ??????????????????????## #????????????????#""""" | | ??????????????????????# ##????????????????###### | | ??????????????????????# #?????????????????????? | | ??????????????????????## #???????????????????### | | ??????????????????????# #???????????????????# | | ??????????????????????## #???????????????????## | | ???????????????????###?# ##???????????????????#" | | ?????????????####### #?# ####?????????####??### | | ?????????????# ## ### #"#####?????# #### " | | ??????????????# # "####### ## | | ??????????????## < "#"# "" | | ????????????#### ## " """""" | | ????????????# #### ! ###""""" | | ????????????# ##?## ! #?###### | | ????????????## #??# " [ "# #?????## | | ????????????## #?# " ! """#""#??????# | | ????????##### #### ## " " #""""#????## | | ????????# # ## ### "##"""##???## | | ????????# " """"""" ["""# #"" ###? " #????#" | | ????????#""" """""" """" ## #???" ##????## | +----------------------------------------------------+ Best States ------------- Heat Dissipation 35 Coolant Potential 50 Energy Generation 15 Energy Capacity 250 Matter Stores 300 Matter Capacity 300 Sight Range 16 Terrain Scan Density 10 Evasion (%) 40 Recoil Reduction 2 Item Schematics ----------------- None Robot Schematics ------------------ None Fabricated ------------ Nothing Repaired ---------- Nothing Studied --------- None Alien Tech Used ----------------- None Achievements -------------- None Challenges ------------ None Game ------ Seed BehemothHackingBeacon Manual? 0 Play Time 00:15:57 Cumulative 177.2 hours Start 2026.02.02 @ 22:29:09 End 2026.02.02 @ 22:45:41 Sessions 1 Manual Loads 0 Difficulty Rogue Special Mode None Game No. 204 Rogue 199 Adventurer 5 Explorer 0 Win Type - Total 6 Types 5/0/0/1/0/0/0/0/0/0 Lore% 50 Gallery% 65 Achievement% 53 Wizard Run 0 Options --------- Layout 0 ASCII 0 Keyboard 1 Movement Vi Keybinds 0 Fullscreen 1 Font 24/Terminus Map View 76x50 Zoom Use 0% Tactical HUD 1 Map Filters NONE Filters NONE Steam 1 RUN: b7a6f787-37d9-4c60-8a60-484a2dfb87e0